Cogmind - Beta 15 @@@ ROGUE MODE // 2025.10.12 @ 19:05:50 Player: NQH Result: Destroyed by G-47 Trooper with Particle Gun Performance ------------- Evolutions (2) 1000 Regions Visited (3) 600 Robots Destroyed (17) 85 Value Destroyed (495) 495 Prototype IDs (3) 60 Alien Tech Used (0) 0 Bonus (200) 200 TOTAL SCORE: 2440 Bonus ------- Pacifist 200 Cogmind --------- Core Integrity 0/550 Matter 272/300 Energy 100/100 System Corruption 0% Temperature Cool (9) Movement Core (50) Location -8/Materials Parts ------- > --- POWER (1) -------- (None) > --- PROPULSION (4) --- (None) > --- UTILITY (4) ------ (None) > --- WEAPON (2) ------- Katana > --- INVENTORY (5) ---- (None) Peak State ------------ > --- POWER ------------ (None) > --- PROPULSION ------- Flight Unit Flight Unit > --- UTILITY ---------- Target Analyzer Target Analyzer Target Analyzer Target Analyzer > --- WEAPON ----------- Advanced Beam Rifle Particle Cannon > --- INVENTORY -------- (None) [Rating: 20] Favorites ----------- Power Heavy Ion Engine Engine Heavy Ion Engine Propulsion Flight Unit Wheel Wheel Hover Unit Hover Unit Flight Unit Flight Unit Utility Target Analyzer Processor Target Analyzer Weapon Advanced Beam Rifle Energy Gun Advanced Beam Rifle Energy Cannon Particle Cannon Ballistic Gun Heavy Assault Rifle Slashing Weapon Katana Build | -11 -10 -9 -8 ------- Run | Yrd Mat Mat Mat Slots Evolved 4 | . . 2 2 Power . | . . . . Propulsion 2 | . . 2 . Utility 2 | . . . 2 Weapon . | . . . . Parts Attached 29 | 5 5 15 4 Power 2 | 1 1 . . Engine 2 | 1 1 . . Core . | . . . . Reactor . | . . . . Propulsion 12 | 2 2 8 . Treads . | . . . . Leg . | . . . . Wheel 2 | 2 . . . Hover 6 | . 2 4 . Flight 4 | . . 4 . Utility 4 | . . 1 3 Device . | . . . . Storage . | . . . . Processor 4 | . . 1 3 Hackware . | . . . . Protection . | . . . . Artifact . | . . . . Weapon 11 | 2 2 6 1 Energy Gun 8 | 2 2 4 . Energy Cannon 1 | . . 1 . Ballistic Gun 1 | . . 1 . Ballistic Cannon . | . . . . Launcher . | . . . . Special Weapon . | . . . . Impact Weapon . | . . . . Slashing Weapon 1 | . . . 1 Piercing Weapon . | . . . . Special Melee Weapon . | . . . . Unidentified Prototypes 3 | . 1 2 . Parts Lost 13 | . 3 10 . Power 1 | . . 1 . Propulsion 8 | . 2 6 . Utility . | . . . . Weapon 4 | . 1 3 . Highest Loss Streak 5 | . 3 5 . To Critical Strikes . | . . . . Average Backups 2 | . 4 3 . Power . | . 1 . . Propulsion . | . 3 . . Utility 1 | . . 2 . Weapon . | . . . . Tool/Special . | . . . . Unused Backups 2 | . 1 . 1 Power 1 | . 1 . . Propulsion . | . . . . Utility . | . . . . Weapon 1 | . . . 1 Tool/Special . | . . . . Average Slot Usage (%) 41 | . 22 52 25 Engine 6 | . 1 9 . Hover 7 | . 20 5 . Flight 9 | . . 13 6 Processor 6 | . . 7 10 Energy Gun 10 | . 1 15 3 Peak Build Rating 20 | 5 4 17 20 Average Rating 8 | 1 1 12 7 On Entrance 3 | . . 2 11 Naked Turns 36 | . 15 . 21 Heaviest Build 12 | 5 6 12 6 Greatest Support 24 | 20 12 24 8 Greatest Overweight (x) 3 | . 1 3 . Average Overweight (x) . | . . . . Largest Inventory Capacity 5 | 5 5 5 5 Average Capacity 5 | 5 5 5 5 Most Carried 5 | 1 5 5 2 Average Carried 2 | . 4 3 . Final Capacity 5 | 5 5 5 5 Final Carried 5 | 1 5 3 . Class Distribution -------------------- 100% | Mutant Dominant Class ---------------- Mutant | -10/Materials Mutant | -9/Materials Mutant | -8/Materials Resources | -11 -10 -9 -8 ----------- Run | Yrd Mat Mat Mat Matter Collected 506 | 217 . 250 39 Remotely . | . . . . Salvage Created 611 | . . 477 134 Parts 34 | . . 31 3 Haulers Intercepted . | . . . . Recyclers Shooed 1 | . . 1 . Parts Field Recycled . | . . . . Retrieved Matter . | . . . . Parts Self-Destructed . | . . . . Prevented . | . . . . Kills | -11 -10 -9 -8 ------- Run | Yrd Mat Mat Mat Combat Hostiles Destroyed 14 | . . 12 2 Melee 2 | . . . 2 Guns 12 | . . 12 . Classes Destroyed 5 | . . 4 1 Worker 2 | . . 2 . Watcher 1 | . . . 1 Swarmer 5 | . . 5 . Grunt 6 | . . 4 2 Sentry 3 | . . 3 . Best Kill Streak 4 | . . 4 2 Combat Bots Only 4 | . . 4 2 Max Kills in Single Turn 1 | . . 1 1 Gunslinging . | . . . . Exploded . | . . . . Melee 1 | . . . 1 Uniques/NPCs Destroyed . | . . . . Combat | -11 -10 -9 -8 -------- Run | Yrd Mat Mat Mat Hostile Shots Fired 160 | . 33 79 48 Missed 46 | . 7 27 12 Hits 114 | . 26 52 36 Melee 4 | . . . 4 Projectile 110 | . 26 52 32 Critical Strikes 3 | . 1 1 1 Damage Taken 1674 | . 232 824 618 Core 916 | . 99 262 555 Absorbed by Shields . | . . . . Core Remaining (%) 64 | 100 60 34 . Volleys Fired 32 | . 1 28 3 Largest 2 | . 2 2 2 Hottest 129 | . 90 122 129 Shots Fired 58 | . 2 50 6 Gun 55 | . 2 50 3 Cannon 3 | . . . 3 Launcher . | . . . . Special . | . . . . Kinetic 3 | . . 3 . Thermal 53 | . . 47 6 Explosive . | . . . . Electromagnetic 2 | . 2 . . Robot Hit Streak 5 | . 1 5 3 Robot Miss Streak 3 | . 2 3 3 Penetration Max . | . . . . Secondary Targets 2 | . . 2 . Max Gunslinging Chain 1 | . . 1 . Shots Hit Robots 37 | . 1 27 9 Core Hits 21 | . . 15 6 Critical Kills . | . . . . Critical Parts Destroyed . | . . . . Critical Strikes 5 | . . 4 1 Burn 4 | . . 4 . Sever 1 | . . . 1 Melee Attacks 12 | . . . 12 Impact . | . . . . Slashing 12 | . . . 12 Piercing . | . . . . Sneak Attacks . | . . . . Combat Hostiles . | . . . . Follow-up Attacks . | . . . . Damage Inflicted 856 | 1 8 561 286 Guns 614 | . 8 546 60 Cannons 41 | . . . 41 Explosions . | . . . . Melee 185 | . . . 185 Ramming 16 | 1 . 15 . Kinetic 26 | . . 26 . Thermal 621 | . . 520 101 Explosive . | . . . . Electromagnetic 8 | . 8 . . Impact . | . . . . Slashing 185 | . . . 185 Piercing . | . . . . Highest Corruption 3 | . . 3 . Average Corruption 2 | . . 2 . Corruption Purged . | . . . . Corruption Blocked . | . . . . Effects 4 | . . 4 . Message Errors 1 | . . 1 . Heat Flow Errors 1 | . . 1 . Data Loss (minor) 2 | . . 2 . Overload Shots . | . . . . Overflow Damage 102 | . . 102 . Projectiles . | . . . . Explosions 102 | . . 102 . Melee . | . . . . Knockbacks . | . . . . Impact . | . . . . Kinetic . | . . . . Secondary . | . . . . Self-Inflicted Damage 199 | . . 199 . Shots 2 | . . 2 . Rammed 4 | 1 . 3 . Targets Rammed 4 | 1 . 3 . Kicked . | . . . . Crushed . | . . . . Highest Temperature 511 | . 15 511 106 Average Temperature 119 | . 10 129 43 Received Heat Transfer 483 | . 24 153 306 Effects 6 | . . 6 . Shutdowns 1 | . . 1 . Energy Bleed 3 | . . 3 . Interference 2 | . . 2 . Siege Activations . | . . . . Martial Activations . | . . . . Shielding Activations . | . . . . Robots Disrupted . | . . . . Combat Hostiles . | . . . . Robots Corrupted . | . . . . Combat Hostiles . | . . . . Parts Fried . | . . . . Impact Corruptions . | . . . . Robots Melted . | . . . . Combat Hostiles . | . . . . Parts Melted 7 | . . 5 2 Heat Transferred 1443 | . . 1258 185 Parts Sabotaged . | . . . . Parts Stolen . | . . . . Parts Stripped . | . . . . Power Chain Reactions . | . . . . Alert | -11 -10 -9 -8 ------- Run | Yrd Mat Mat Mat Maximum Alert Level 1 | . . 1 . Low Security (%) 90 | 100 100 83 100 Level 1 9 | . . 16 . Level 2 . | . . . . Level 3 . | . . . . Level 4 . | . . . . Level 5 . | . . . . High Security . | . . . . Max Security . | . . . . Peak Influence 244 | . 45 244 109 Initial 92 | . . 1 92 Average 60 | . 2 81 89 Influence Increases 566 | . 45 474 47 Destroy 0b10 Robot/C 280 | . . 240 40 Destroy 0b10 Robot/NC 15 | . . 10 5 Destroy Leader 62 | . . 60 2 Disable Machine 60 | . . 60 . Destroy Structure 29 | . . 29 . Lose Combat Pursuer 120 | . 45 75 . Influence Decreases 467 | . 40 260 167 Entered New Map 131 | . . 4 127 Time Decay 226 | . 10 176 40 Lost Part 110 | . 30 80 . Squads Dispatched 2 | . 1 1 . Investigation . | . . . . Extermination . | . . . . Reinforcement 2 | . 1 1 . Assault . | . . . . Garrison . | . . . . Intercept . | . . . . Searches Triggered . | . . . . Construction Impeded . | . . . . Haulers Reinforced . | . . . . Active Scanning Responses . | . . . . Cargo Convoy Interrupts . | . . . . Stealth | -11 -10 -9 -8 --------- Run | Yrd Mat Mat Mat Distress Signals 3 | . 1 1 1 Communications Jammed . | . . . . Distress Signals . | . . . . Times Spotted 34 | . 10 16 8 Peak Tracking Total 8 | . 8 5 7 Tactical Retreats 4 | . 1 3 . Traps | -11 -10 -9 -8 ------- Run | Yrd Mat Mat Mat Traps Triggered 2 | . . 2 . Indirectly . | . . . . Trap Hack Attempts . | . . . . Triggered . | . . . . Disarmed . | . . . . Reprogrammed . | . . . . Reused . | . . . . Traps Extracted . | . . . . Installed . | . . . . Triggered . | . . . . Machines | -11 -10 -9 -8 ---------- Run | Yrd Mat Mat Mat Machines Disabled 4 | . . 4 . Max in Single Turn 3 | . . 3 . Machines Repaired . | . . . . Machines Dismantled . | . . . . Machines Sabotaged . | . . . . Overloaded Fab Kills . | . . . . Hacking | -11 -10 -9 -8 --------- Run | Yrd Mat Mat Mat Machines Accessed . | . . . . Terminals . | . . . . Fabricators . | . . . . Repair Stations . | . . . . Recycling Units . | . . . . Scanalyzers . | . . . . Garrison Access . | . . . . Total Hacks . | . . . . Successful . | . . . . Failed . | . . . . Catastrophic . | . . . . Database Lockouts . | . . . . Manual . | . . . . Terminals . | . . . . Fabricators . | . . . . Repair Stations . | . . . . Recycling Units . | . . . . Scanalyzers . | . . . . Garrison Access . | . . . . Terminal Hacks . | . . . . Fabricator Hacks . | . . . . Repair Station Hacks . | . . . . Recycling Unit Hacks . | . . . . Scanalyzer . | . . . . Garrison Access Hacks . | . . . . Unauthorized Hacks . | . . . . Terminals . | . . . . Fabricators . | . . . . Repair Stations . | . . . . Recycling Units . | . . . . Scanalyzers . | . . . . Garrison Access . | . . . . Data Cores Recovered . | . . . . Used . | . . . . Hacking Detections . | . . . . Full Trace Events . | . . . . Feedback Events . | . . . . Feedback Blocked . | . . . . Robot Schematics Acquired . | . . . . Robots Built . | . . . . Authchips . | . . . . Time . | . . . . Total Robot Build Rating . | . . . . Part Schematics Acquired . | . . . . Parts Built . | . . . . Authchips . | . . . . Time . | . . . . Total Part Build Rating . | . . . . Parts Repaired . | . . . . Time . | . . . . Parts Recycled . | . . . . Recycled Matter . | . . . . Retrieved Matter . | . . . . Retrieved Components . | . . . . Parts Scanalyzed . | . . . . Part Schematics Acquired . | . . . . Parts Damaged . | . . . . Bothacking | -11 -10 -9 -8 ------------ Run | Yrd Mat Mat Mat Used RIF Installer . | . . . . Robots Hacked . | . . . . Non-combat . | . . . . Combat . | . . . . Robot Hacks Applied . | . . . . Relay Couplers Released . | . . . . Fabnet Peak Effective % . | . . . . Robots Rewired . | . . . . Allies Hacked . | . . . . Hacks Repelled . | . . . . Allies | -11 -10 -9 -8 -------- Run | Yrd Mat Mat Mat Total Allies . | . . . . Largest Group . | . . . . Highest-Rated Group . | . . . . Highest-Rated Ally . | . . . . Total Orders . | . . . . Ally Attacks . | . . . . Total Damage . | . . . . Kills . | . . . . Allies Corrupted . | . . . . Allies Melted . | . . . . Intel | -11 -10 -9 -8 ------- Run | Yrd Mat Mat Mat Active Infowar (turns) . | . . . . Robot Analysis Total . | . . . . Derelict Logs Recovered . | . . . . Drone Launches . | . . . . Drone Recoveries . | . . . . Exploration | -11 -10 -9 -8 ------------- Run | Yrd Mat Mat Mat Turns Passed 647 | 51 130 381 85 Spaces Moved 633 | 77 206 262 88 Core 166 | 65 25 23 53 Treads . | . . . . Legs . | . . . . Wheels 12 | 12 . . . Hover 230 | . 181 49 . Flight 225 | . . 190 35 Fastest Speed 37 | 50 50 37 37 Average Speed 69 | 54 55 93 44 Slowest Speed 200 | 80 100 200 50 Overloaded Moves . | . . . . Propulsion Burnouts . | . . . . Robots Hopped . | . . . . Potential Cave-ins . | . . . . Cave-ins Triggered . | . . . . Exploration Rate (%) 20 | 4 37 26 13 Regions Visited 3 Branch Regions . Pre-discovered Areas . | . . . . Known Exits Taken . | . . . . Unknown Exits Taken 3 | 1 1 1 . Scrap Searched . | . . . . Spaces Dug . | . . . . Terrain Destroyed 28 | . . 28 . Melee . | . . . . Projectile . | . . . . AOE 28 | . . 28 . Terrain Rammed . | . . . . Walls Destroyed . | . . . . Machines Disabled . | . . . . Actions | -11 -10 -9 -8 --------- Run | Yrd Mat Mat Mat Total 757 | 83 217 348 109 Wait 14 | . . 14 . Move 631 | 77 205 261 88 Hop . | . . . . Pick Up 14 | 1 4 8 1 Fast Attach 18 | 5 5 7 1 Attach 17 | . . 14 3 Detach 7 | . 1 6 . Swap 3 | . . 3 . Drop 6 | . 1 4 1 Fire 32 | . 1 28 3 Melee 12 | . . . 12 Ram 3 | . . 3 . Kick . | . . . . Crush . | . . . . Escape Stasis . | . . . . Rewire . | . . . . Trap . | . . . . Miscellaneous . | . . . . Route ------- -11/Scrapyard -10/Materials -9/Materials (discovered 2 exits: [*Mat] / [*Min]) -8/Materials History --------- Turn | Location | Event 9 | -11/Scrapyard | Discovered new exit (range 13) 44 | -11/Scrapyard | Released all parts (5) 52 | -11/Scrapyard | Entered Materials 158 | -10/Materials | Discovered new exit (range 15) 182 | -10/Materials | Entered another Materials area 182 | -9/Materials | Evolved 2 slots: Propulsion x2 210 | -9/Materials | Lost 3 parts (2n1w) 271 | -9/Materials | Lost 5 parts (5n) 340 | -9/Materials | Build established: Mutant 465 | -9/Materials | Discovered new exit (range 9) 501 | -9/Materials | Core integrity fell below 50% 548 | -9/Materials | Lost 5 parts (1p1n3w) 561 | -9/Materials | Discovered new exit (range 5) 563 | -9/Materials | Entered another Materials area 563 | -8/Materials | Evolved 2 slots: Utility x2 589 | -8/Materials | Released all parts (8) 635 | -8/Materials | Core integrity fell below 50% 644 | -8/Materials | Core integrity fell below 20% 648 | -8/Materials | Destroyed by G-47 Trooper with Particle Gun Last Messages --------------- 00576_ W-25 Informer destroyed. 00589_ Released Target Analyzer. 00589_ Released Flight Unit. 00589_ Released Target Analyzer. 00589_ Released Adv. Beam Rifle. 00589_ Released Flight Unit. 00589_ Released Particle Cannon. 00595_ Critical hit (Burn: +37). 00603_ K-01 Serf collects debris. 00605_ Dropped Shock Rifle. 00606_ K-01 Serf collects debris. 00610_ Acquired Unknown Slashing Weapon. 00610_ Identified Katana. 00611_ K-01 Serf collects debris. 00624_ G-47 Trooper destroyed. 00625_ K-01 Serf collects debris. 00635_ G-47 Trooper Lgt. Nuclear Core severed. 00637_ G-47 Trooper destroyed. 00638_ K-01 Serf collects debris. 00640_ Acquired 39 matter. Map ----- +----------------------------------------------------+ | ???????????# = % #?????????? | | ???????????# [= #### #?????????? | | ???????????# ]""" #??#######?????????? | | ???????????# """ #??????????????????? | | ???????????# !! """ +??????????????????? | | ???????????# !! #??????????????????? | | ???????????# !! #??????????????????? | | ???????????# #??????????????????? | | ???????????# #####+##??????????????????? | | ???????????# """ #?????????????????????????? | | ???????????# """ #?????????????????????????? | | ???????????# """ #?????????????????????????? | | ???????????# #?????????????????????????? | | ???????????# !#?????????????????????????? | | ???????????# #?????????????????????????? | | ??????### ######/#### ##?????????????????????????? | | ? / # #??????????????????????????? | | ????????# ### """ # #??????????????????????????? | | ????????????# "Y" # #??????????????????????????? | | ????????????# # #??????????????????????????? | | ????????????# # #??????????????????????????? | | ????????????# """ # ######+######??????????????? | | ????????????# """ +[ ???????????? | | ????????????# """ # = #???????????????? | | ????????????# ##r###;#### #???????????????? | | ????????????# [! # %rl@ g #???????????????????? | | ????????????# !! # m*= #???????????????????? | | ????????????######### ! g +???????????????????? | | ????????????????????# #???????????????????? | | ????????????????????# #???????????????????? | | ????????????????????# #???????????????????? | | ????????????????????# ! #???????????????????? | | ????????????????????# ! #???????????????????? | | ????????????????????# +???????????????????? | | ????????????????????##########???????????????????? | | ?????????????????????????????????????????????????? | | ?????????????????????????????????????????????????? | | ?????????????????????????????????????????????????? | | ?????????????????????????????????????????????????? | | ?????????????????????????????????????????????????? | | ?????????????????????????????????????????????????? | | ?????????????????????????????????????????????????? | | ?????????????????????????????????????????????????? | | ?????????????????????????????????????????????????? | | ?????????????????????????????????????????????????? | | | | | | | | | | | +----------------------------------------------------+ Best States ------------- Heat Dissipation 31 Energy Generation 14 Energy Capacity 280 Matter Stores 300 Matter Capacity 300 Sight Range 16 Terrain Scan Density 10 Evasion (%) 62 Target Analysis 7 Item Schematics ----------------- None Robot Schematics ------------------ None Fabricated ------------ Nothing Repaired ---------- Nothing Alien Tech Used ----------------- None Achievements -------------- None Challenges ------------ None Game ------ Seed RegenerativeDecoderSystem Manual? 0 Play Time 00:07:13 Cumulative 29.1 hours Start 2025.10.12 @ 18:59:37 End 2025.10.12 @ 19:05:50 Sessions 1 Manual Loads 0 Difficulty Rogue Special Mode None Game No. 115 Rogue 115 Adventurer 0 Explorer 0 Win Type - Total 0 Types 0/0/0/0/0/0/0/0/0/0 Lore% 11 Gallery% 30 Achievement% 27 Wizard Run 0 Options --------- Layout 1 ASCII 0 Keyboard 1 Movement Vi Keybinds 0 Fullscreen 1 Font 16/SmallcapsGlow Map View 55x38 Zoom Use 0% Tactical HUD 1 Map Filters NONE Filters NONE Steam 1 RUN: b6a9f1d5-b66a-41ab-94be-0be1f35a8dde